[Event "Titled Tuesday Blitz May 31 Early 2022"]
[White "Agasarov, Benik"]
[Black "Priasmoro, Novendra"]
[WhiteFideId "13314823"]
[BlackFideId "7105029"]
[WhiteElo "2601"]
[BlackElo "2309"]
[Result "0-1"]
[Round "04"]
[TimeControl "180+1"]
[Date "2022.05.31"]
[WhiteClock "0:00:01"]
[BlackClock "0:00:03"]

1. e4 {[%clk 0:03:00]}  e5 {[%clk 0:02:58]} 2. Nf3 {[%clk 0:02:58]}  Nc6 {[%clk 0:02:58]} 3. Bb5 {[%clk 0:02:57]}  a6 {[%clk 0:02:58]} 4. Ba4 {[%clk 0:02:55]}  Nf6 {[%clk 0:02:56]} 5. O-O {[%clk 0:02:54]}  b5 {[%clk 0:02:56]} 6. Bb3 {[%clk 0:02:54]}  Bc5 {[%clk 0:02:57]} 7. c3 {[%clk 0:02:48]}  d6 {[%clk 0:02:53]} 8. d4 {[%clk 0:02:45]}  Bb6 {[%clk 0:02:52]} 9. h3 {[%clk 0:02:45]}  O-O {[%clk 0:02:50]} 10. Be3 {[%clk 0:02:40]}  Bb7 {[%clk 0:02:39]} 11. Nbd2 {[%clk 0:02:37]}  Re8 {[%clk 0:02:33]} 12. Re1 {[%clk 0:02:13]}  exd4 {[%clk 0:02:29]} 13. cxd4 {[%clk 0:02:10]}  Na5 {[%clk 0:02:25]} 14. e5 {[%clk 0:02:03]}  Nxb3 {[%clk 0:02:20]} 15. Qxb3 {[%clk 0:02:03]}  Nd5 {[%clk 0:02:18]} 16. Bg5 {[%clk 0:01:56]}  Qd7 {[%clk 0:02:17]} 17. Rad1 {[%clk 0:01:56]}  h6 {[%clk 0:02:14]} 18. Bh4 {[%clk 0:01:52]}  Nf4 {[%clk 0:02:10]} 19. Bg3 {[%clk 0:01:47]}  Qf5 {[%clk 0:01:59]} 20. Nh4 {[%clk 0:01:36]}  Qh5 {[%clk 0:01:57]} 21. Bxf4 {[%clk 0:01:32]}  Qxh4 {[%clk 0:01:57]} 22. Bg3 {[%clk 0:01:07]}  Qg5 {[%clk 0:01:55]} 23. Ne4 {[%clk 0:01:02]}  Qg6 {[%clk 0:01:51]} 24. Qf3 {[%clk 0:00:50]}  Kh8 {[%clk 0:01:41]} 25. Qg4 {[%clk 0:00:33]}  Qxg4 {[%clk 0:01:39]} 26. hxg4 {[%clk 0:00:33]}  dxe5 {[%clk 0:01:27]} 27. dxe5 {[%clk 0:00:34]}  Rad8 {[%clk 0:01:27]} 28. Nc3 {[%clk 0:00:33]}  Bd4 {[%clk 0:01:18]} 29. e6 {[%clk 0:00:28]}  fxe6 {[%clk 0:01:11]} 30. Bxc7 {[%clk 0:00:27]}  Bxc3 {[%clk 0:01:06]} 31. bxc3 {[%clk 0:00:27]}  Rc8 {[%clk 0:01:01]} 32. Be5 {[%clk 0:00:24]}  Bd5 {[%clk 0:01:01]} 33. a3 {[%clk 0:00:24]}  Kh7 {[%clk 0:00:57]} 34. Rd4 {[%clk 0:00:21]}  Re7 {[%clk 0:00:39]} 35. Re3 {[%clk 0:00:18]}  Rc4 {[%clk 0:00:35]} 36. Rxc4 {[%clk 0:00:17]}  Bxc4 {[%clk 0:00:35]} 37. Re4 {[%clk 0:00:15]}  Bd5 {[%clk 0:00:34]} 38. Rd4 {[%clk 0:00:14]}  Re8 {[%clk 0:00:33]} 39. a4 {[%clk 0:00:14]}  Rc8 {[%clk 0:00:30]} 40. axb5 {[%clk 0:00:14]}  axb5 {[%clk 0:00:31]} 41. Rb4 {[%clk 0:00:14]}  Bc4 {[%clk 0:00:32]} 42. Rb2 {[%clk 0:00:11]}  Ra8 {[%clk 0:00:32]} 43. Rd2 {[%clk 0:00:11]}  Ra7 {[%clk 0:00:32]} 44. Kh2 {[%clk 0:00:11]}  Kg6 {[%clk 0:00:31]} 45. Kg3 {[%clk 0:00:10]}  h5 {[%clk 0:00:32]} 46. gxh5+ {[%clk 0:00:11]}  Kxh5 {[%clk 0:00:33]} 47. Rd8 {[%clk 0:00:10]}  Kg6 {[%clk 0:00:29]} 48. f3 {[%clk 0:00:11]}  Kf5 {[%clk 0:00:28]} 49. Bd4 {[%clk 0:00:11]}  Rf7 {[%clk 0:00:23]} 50. Kf2 {[%clk 0:00:10]}  e5 {[%clk 0:00:22]} 51. g4+ {[%clk 0:00:10]}  Kf6 {[%clk 0:00:15]} 52. Rd6+ {[%clk 0:00:10]}  Be6 {[%clk 0:00:15]} 53. g5+ {[%clk 0:00:10]}  Kf5 {[%clk 0:00:15]} 54. Be3 {[%clk 0:00:10]}  Rc7 {[%clk 0:00:16]} 55. Rd3 {[%clk 0:00:08]}  Rc8 {[%clk 0:00:12]} 56. Kg3 {[%clk 0:00:08]}  Ra8 {[%clk 0:00:12]} 57. Rd6 {[%clk 0:00:08]}  Rc8 {[%clk 0:00:12]} 58. Bd2 {[%clk 0:00:07]}  Ra8 {[%clk 0:00:09]} 59. Rb6 {[%clk 0:00:08]}  Ra2 {[%clk 0:00:10]} 60. Be3 {[%clk 0:00:08]}  Re2 {[%clk 0:00:10]} 61. Bf2 {[%clk 0:00:08]}  Rb2 {[%clk 0:00:09]} 62. Rb7 {[%clk 0:00:09]}  g6 {[%clk 0:00:09]} 63. Be3 {[%clk 0:00:08]}  Re2 {[%clk 0:00:09]} 64. Bc1 {[%clk 0:00:07]}  Rc2 {[%clk 0:00:08]} 65. Be3 {[%clk 0:00:08]}  Rxc3 {[%clk 0:00:09]} 66. Bf2 {[%clk 0:00:06]}  Bd5 {[%clk 0:00:08]} 67. Rxb5 {[%clk 0:00:06]}  Bxf3 {[%clk 0:00:07]} 68. Kh2 {[%clk 0:00:04]}  Rc2 {[%clk 0:00:03]} 69. Kg3 {[%clk 0:00:05]}  Be2 {[%clk 0:00:04]} 70. Rb8 {[%clk 0:00:04]}  Rc3+ {[%clk 0:00:03]} 71. Kh2 {[%clk 0:00:03]}  Kxg5 {[%clk 0:00:04]} 72. Rf8 {[%clk 0:00:03]}  Bf3 {[%clk 0:00:02]} 73. Be3+ {[%clk 0:00:02]}  Rxe3 {[%clk 0:00:02]} 74. Kg3 {[%clk 0:00:03]}  e4 {[%clk 0:00:03]} 75. Kf2 {[%clk 0:00:03]}  Re2+ {[%clk 0:00:04]} 76. Kg3 {[%clk 0:00:04]}  Rg2+ {[%clk 0:00:04]} 77. Kh3 {[%clk 0:00:04]}  Rg4 {[%clk 0:00:05]} 78. Kh2 {[%clk 0:00:03]}  Rf4 {[%clk 0:00:05]} 79. Re8 {[%clk 0:00:03]}  Kg4 {[%clk 0:00:03]} 80. Re6 {[%clk 0:00:03]}  g5 {[%clk 0:00:03]} 81. Re8 {[%clk 0:00:03]}  Rf7 {[%clk 0:00:03]} 82. Rh8 {[%clk 0:00:03]}  Rc7 {[%clk 0:00:03]} 83. Rd8 {[%clk 0:00:02]}  Rc1 {[%clk 0:00:03]} 84. Rd2 {[%clk 0:00:01]}  Rh1# {[%clk 0:00:03]} 0-1


[Site "https://www.chess.com"]

[Event "Titled Tuesday Blitz May 31 Early 2022"]
[White "Arabidze, Meri"]
[Black "Jumabayev, Rinat"]
[WhiteFideId "13604040"]
[BlackFideId "13702661"]
[WhiteElo "2335"]
[BlackElo "2561"]
[Result "0-1"]
[Round "04"]
[TimeControl "180+1"]
[Date "2022.06.01"]
[WhiteClock "0:00:01"]
[BlackClock "0:00:04"]

1. d4 {[%clk 0:03:00]}  Nf6 {[%clk 0:02:59]} 2. Nf3 {[%clk 0:03:01]}  g6 {[%clk 0:02:59]} 3. g3 {[%clk 0:03:01]}  Bg7 {[%clk 0:03:00]} 4. Bg2 {[%clk 0:03:02]}  O-O {[%clk 0:03:01]} 5. O-O {[%clk 0:03:03]}  c5 {[%clk 0:03:00]} 6. dxc5 {[%clk 0:03:01]}  Qa5 {[%clk 0:02:59]} 7. Nc3 {[%clk 0:02:51]}  Qxc5 {[%clk 0:02:57]} 8. e4 {[%clk 0:02:50]}  Nc6 {[%clk 0:02:56]} 9. Be3 {[%clk 0:02:42]}  Qa5 {[%clk 0:02:55]} 10. Nd4 {[%clk 0:02:37]}  d6 {[%clk 0:02:43]} 11. Nb3 {[%clk 0:02:35]}  Qd8 {[%clk 0:02:41]} 12. h3 {[%clk 0:02:34]}  a6 {[%clk 0:02:37]} 13. a4 {[%clk 0:02:33]}  Be6 {[%clk 0:02:34]} 14. Nd5 {[%clk 0:02:29]}  Rc8 {[%clk 0:02:14]} 15. a5 {[%clk 0:02:18]}  Ne5 {[%clk 0:01:59]} 16. Nd2 {[%clk 0:01:59]}  Nxd5 {[%clk 0:01:51]} 17. exd5 {[%clk 0:01:59]}  Bf5 {[%clk 0:01:52]} 18. c3 {[%clk 0:01:53]}  Qd7 {[%clk 0:01:33]} 19. Kh2 {[%clk 0:01:50]}  h5 {[%clk 0:01:24]} 20. Bg5 {[%clk 0:01:45]}  Nd3 {[%clk 0:01:21]} 21. Ra2 {[%clk 0:01:36]}  e5 {[%clk 0:01:07]} 22. Ne4 {[%clk 0:01:23]}  Bxe4 {[%clk 0:01:03]} 23. Bxe4 {[%clk 0:01:24]}  Nc5 {[%clk 0:01:03]} 24. Bg2 {[%clk 0:01:22]}  Qc7 {[%clk 0:00:51]} 25. b4 {[%clk 0:01:12]}  Nd7 {[%clk 0:00:51]} 26. Rc2 {[%clk 0:01:13]}  f5 {[%clk 0:00:43]} 27. c4 {[%clk 0:01:10]}  e4 {[%clk 0:00:43]} 28. c5 {[%clk 0:01:01]}  dxc5 {[%clk 0:00:37]} 29. d6 {[%clk 0:01:01]}  Qc6 {[%clk 0:00:32]} 30. bxc5 {[%clk 0:01:01]}  Nxc5 {[%clk 0:00:25]} 31. d7 {[%clk 0:00:58]}  Qxd7 {[%clk 0:00:24]} 32. Qb1 {[%clk 0:00:40]}  Nd3 {[%clk 0:00:21]} 33. Rxc8 {[%clk 0:00:29]}  Rxc8 {[%clk 0:00:22]} 34. f3 {[%clk 0:00:23]}  h4 {[%clk 0:00:20]} 35. Bxh4 {[%clk 0:00:21]}  e3 {[%clk 0:00:20]} 36. f4 {[%clk 0:00:16]}  Kh7 {[%clk 0:00:16]} 37. Qa2 {[%clk 0:00:15]}  Nc1 {[%clk 0:00:12]} 38. Qa3 {[%clk 0:00:10]}  Qd2 {[%clk 0:00:10]} 39. g4 {[%clk 0:00:08]}  Rc2 {[%clk 0:00:09]} 40. Rg1 {[%clk 0:00:06]}  e2 {[%clk 0:00:04]} 41. gxf5 {[%clk 0:00:06]}  Qxf4+ {[%clk 0:00:04]} 42. Bg3 {[%clk 0:00:05]}  Qxf5 {[%clk 0:00:05]} 43. Qe3 {[%clk 0:00:04]}  Nd3 {[%clk 0:00:05]} 44. Qe8 {[%clk 0:00:01]}  Be5 {[%clk 0:00:02]} 45. Bxe5 {[%clk 0:00:01]}  Qxe5+ {[%clk 0:00:02]} 46. Qxe5 {[%clk 0:00:01]}  Nxe5 {[%clk 0:00:03]} 47. Kg3 {[%clk 0:00:01]}  Nd3 {[%clk 0:00:04]} 0-1


[Site "https://www.chess.com"]

[Event "Titled Tuesday Blitz May 31 Early 2022"]
[White "Atakhan, Abtin"]
[Black "Suich, Peter D"]
[WhiteFideId "22502203"]
[BlackFideId "2050366"]
[WhiteElo "2094"]
[BlackElo "2425"]
[Result "1-0"]
[Round "04"]
[TimeControl "180+1"]
[Date "2022.06.01"]
[WhiteClock "0:00:46"]
[BlackClock "0:00:03"]

1. Nf3 {[%clk 0:03:00]}  d5 {[%clk 0:02:59]} 2. c4 {[%clk 0:03:00]}  c6 {[%clk 0:02:59]} 3. e3 {[%clk 0:02:59]}  Nf6 {[%clk 0:03:00]} 4. Nc3 {[%clk 0:02:59]}  e6 {[%clk 0:02:59]} 5. b3 {[%clk 0:02:59]}  Be7 {[%clk 0:02:59]} 6. Bb2 {[%clk 0:02:59]}  O-O {[%clk 0:02:59]} 7. Qc2 {[%clk 0:02:59]}  Nbd7 {[%clk 0:02:59]} 8. d4 {[%clk 0:02:59]}  b6 {[%clk 0:02:57]} 9. Bd3 {[%clk 0:02:59]}  h6 {[%clk 0:02:52]} 10. O-O {[%clk 0:03:00]}  a5 {[%clk 0:02:50]} 11. Rfe1 {[%clk 0:02:58]}  Ba6 {[%clk 0:02:49]} 12. Rad1 {[%clk 0:02:58]}  Qc8 {[%clk 0:02:44]} 13. e4 {[%clk 0:02:58]}  dxe4 {[%clk 0:02:21]} 14. Nxe4 {[%clk 0:02:58]}  Nxe4 {[%clk 0:02:22]} 15. Bxe4 {[%clk 0:02:58]}  Nf6 {[%clk 0:02:22]} 16. Bd3 {[%clk 0:02:53]}  Rd8 {[%clk 0:02:16]} 17. Qe2 {[%clk 0:02:48]}  Bb4 {[%clk 0:02:13]} 18. Rf1 {[%clk 0:02:46]}  Bf8 {[%clk 0:02:06]} 19. Bb1 {[%clk 0:02:34]}  Qc7 {[%clk 0:01:55]} 20. Qc2 {[%clk 0:02:30]}  Be7 {[%clk 0:01:46]} 21. Ne5 {[%clk 0:02:27]}  c5 {[%clk 0:01:45]} 22. dxc5 {[%clk 0:02:09]}  Bxc5 {[%clk 0:01:44]} 23. Ng4 {[%clk 0:02:07]}  Be7 {[%clk 0:00:58]} 24. Nxf6+ {[%clk 0:01:58]}  Bxf6 {[%clk 0:00:58]} 25. Bxf6 {[%clk 0:01:57]}  gxf6 {[%clk 0:00:59]} 26. Qh7+ {[%clk 0:01:56]}  Kf8 {[%clk 0:01:00]} 27. Qxh6+ {[%clk 0:01:56]}  Ke7 {[%clk 0:01:00]} 28. Qe3 {[%clk 0:01:55]}  Bb7 {[%clk 0:00:58]} 29. Be4 {[%clk 0:01:53]}  Rh8 {[%clk 0:00:56]} 30. h3 {[%clk 0:01:51]}  Rad8 {[%clk 0:00:50]} 31. Bxb7 {[%clk 0:01:48]}  Qxb7 {[%clk 0:00:50]} 32. f3 {[%clk 0:01:42]}  Qc7 {[%clk 0:00:47]} 33. f4 {[%clk 0:01:28]}  Qc6 {[%clk 0:00:37]} 34. Kf2 {[%clk 0:01:19]}  Rhg8 {[%clk 0:00:36]} 35. g4 {[%clk 0:01:18]}  f5 {[%clk 0:00:26]} 36. Rxd8 {[%clk 0:01:15]}  Kxd8 {[%clk 0:00:15]} 37. Rd1+ {[%clk 0:01:14]}  Ke7 {[%clk 0:00:15]} 38. g5 {[%clk 0:01:05]}  Rh8 {[%clk 0:00:15]} 39. Qd4 {[%clk 0:01:04]}  Qc5 {[%clk 0:00:09]} 40. Qxc5+ {[%clk 0:01:03]}  bxc5 {[%clk 0:00:10]} 41. Kg3 {[%clk 0:01:02]}  Ra8 {[%clk 0:00:09]} 42. a4 {[%clk 0:01:00]}  Rb8 {[%clk 0:00:08]} 43. Rd3 {[%clk 0:01:01]}  Rh8 {[%clk 0:00:05]} 44. Re3 {[%clk 0:00:59]}  Rh7 {[%clk 0:00:05]} 45. Re5 {[%clk 0:00:59]}  Kd6 {[%clk 0:00:05]} 46. h4 {[%clk 0:00:56]}  Rh8 {[%clk 0:00:05]} 47. Re3 {[%clk 0:00:54]}  Rh7 {[%clk 0:00:06]} 48. Rd3+ {[%clk 0:00:54]}  Ke7 {[%clk 0:00:06]} 49. b4 {[%clk 0:00:53]}  cxb4 {[%clk 0:00:04]} 50. c5 {[%clk 0:00:53]}  Rh8 {[%clk 0:00:04]} 51. h5 {[%clk 0:00:46]}  Rxh5 {[%clk 0:00:03]} 52. c6 {[%clk 0:00:46]} 1-0


[Site "https://www.chess.com"]

[Event "Titled Tuesday Blitz May 31 Early 2022"]
[White "Bachmann, Axel"]
[Black "Svane, Frederik"]
[WhiteFideId "3700488"]
[BlackFideId "12923044"]
[WhiteElo "2587"]
[BlackElo "2459"]
[Result "1-0"]
[Round "04"]
[TimeControl "180+1"]
[Date "2022.05.31"]
[WhiteClock "0:01:13"]
[BlackClock "0:01:57"]

1. e4 {[%clk 0:02:59]}  c5 {[%clk 0:03:00]} 2. Nf3 {[%clk 0:02:57]}  e6 {[%clk 0:03:00]} 3. d4 {[%clk 0:02:53]}  cxd4 {[%clk 0:03:01]} 4. Nxd4 {[%clk 0:02:53]}  Nc6 {[%clk 0:03:02]} 5. Nc3 {[%clk 0:02:52]}  a6 {[%clk 0:03:02]} 6. Nxc6 {[%clk 0:02:50]}  bxc6 {[%clk 0:03:03]} 7. Qg4 {[%clk 0:02:44]}  d5 {[%clk 0:02:56]} 8. Bd3 {[%clk 0:02:40]}  h5 {[%clk 0:02:46]} 9. Qf3 {[%clk 0:02:36]}  Be7 {[%clk 0:02:45]} 10. O-O {[%clk 0:02:32]}  Nf6 {[%clk 0:02:45]} 11. Re1 {[%clk 0:02:06]}  Bb7 {[%clk 0:02:44]} 12. Bg5 {[%clk 0:02:02]}  Nd7 {[%clk 0:02:41]} 13. Bxe7 {[%clk 0:02:01]}  Qxe7 {[%clk 0:02:42]} 14. Rad1 {[%clk 0:01:49]}  Kf8 {[%clk 0:02:31]} 15. h3 {[%clk 0:01:42]}  Rh6 {[%clk 0:02:26]} 16. Na4 {[%clk 0:01:30]}  c5 {[%clk 0:02:15]} 17. exd5 {[%clk 0:01:25]}  Bxd5 {[%clk 0:02:15]} 18. Be4 {[%clk 0:01:24]}  Bxe4 {[%clk 0:02:10]} 19. Qxe4 {[%clk 0:01:24]}  Re8 {[%clk 0:02:09]} 20. Qb7 {[%clk 0:01:22]}  Nf6 {[%clk 0:01:57]} 21. Qxa6 {[%clk 0:01:15]}  Nd5 {[%clk 0:01:57]} 22. Rxd5 {[%clk 0:01:13]} 1-0


[Site "https://www.chess.com"]

[Event "Titled Tuesday Blitz May 31 Early 2022"]
[White "Bashirli, Saadat"]
[Black "Derraugh, Geordie"]
[WhiteFideId "13429990"]
[BlackFideId "2603950"]
[WhiteElo "1173"]
[BlackElo "2116"]
[Result "0-1"]
[Round "04"]
[TimeControl "180+1"]
[Date "2022.06.01"]
[WhiteClock "0:00:21"]
[BlackClock "0:00:11"]

1. Nf3 {[%clk 0:03:00]}  Nf6 {[%clk 0:02:58]} 2. g3 {[%clk 0:03:00]}  g6 {[%clk 0:02:58]} 3. Bg2 {[%clk 0:03:00]}  Bg7 {[%clk 0:02:59]} 4. O-O {[%clk 0:03:00]}  O-O {[%clk 0:03:00]} 5. d3 {[%clk 0:02:57]}  c5 {[%clk 0:02:59]} 6. c4 {[%clk 0:02:54]}  Nc6 {[%clk 0:02:59]} 7. Nc3 {[%clk 0:02:51]}  d5 {[%clk 0:02:58]} 8. cxd5 {[%clk 0:02:46]}  Nxd5 {[%clk 0:02:59]} 9. Nxd5 {[%clk 0:02:46]}  Qxd5 {[%clk 0:03:00]} 10. Bf4 {[%clk 0:02:46]}  Bxb2 {[%clk 0:02:55]} 11. Ne5 {[%clk 0:02:34]}  Qe6 {[%clk 0:02:26]} 12. Nxc6 {[%clk 0:02:32]}  bxc6 {[%clk 0:02:20]} 13. Rb1 {[%clk 0:02:29]}  Bd4 {[%clk 0:02:15]} 14. e3 {[%clk 0:02:26]}  Bg7 {[%clk 0:02:14]} 15. Qa4 {[%clk 0:02:25]}  Bd7 {[%clk 0:02:14]} 16. Rb7 {[%clk 0:02:22]}  a5 {[%clk 0:02:06]} 17. Rxd7 {[%clk 0:02:21]}  Qxd7 {[%clk 0:02:06]} 18. Bxc6 {[%clk 0:02:21]}  Qxd3 {[%clk 0:02:06]} 19. Bxa8 {[%clk 0:02:21]}  Rxa8 {[%clk 0:02:07]} 20. Qc6 {[%clk 0:02:18]}  Qd8 {[%clk 0:01:41]} 21. Qxc5 {[%clk 0:02:16]}  Rc8 {[%clk 0:01:42]} 22. Qb5 {[%clk 0:02:13]}  Bc3 {[%clk 0:01:27]} 23. Rc1 {[%clk 0:02:09]}  Bb4 {[%clk 0:00:38]} 24. Qf1 {[%clk 0:01:53]}  Ra8 {[%clk 0:00:26]} 25. Qc4 {[%clk 0:01:45]}  Qb6 {[%clk 0:00:20]} 26. Bh6 {[%clk 0:01:41]}  Qd8 {[%clk 0:00:15]} 27. Qc2 {[%clk 0:01:36]}  f6 {[%clk 0:00:11]} 28. Qc4+ {[%clk 0:01:35]}  Kh8 {[%clk 0:00:10]} 29. Qf7 {[%clk 0:01:34]}  Qg8 {[%clk 0:00:10]} 30. Qc4 {[%clk 0:01:25]}  Qxc4 {[%clk 0:00:08]} 31. Rxc4 {[%clk 0:01:26]}  Kg8 {[%clk 0:00:09]} 32. Rc7 {[%clk 0:01:24]}  g5 {[%clk 0:00:05]} 33. h4 {[%clk 0:01:20]}  Bd6 {[%clk 0:00:05]} 34. Rb7 {[%clk 0:01:16]}  gxh4 {[%clk 0:00:06]} 35. gxh4 {[%clk 0:01:17]}  Kf7 {[%clk 0:00:06]} 36. Bf4 {[%clk 0:01:10]}  Bxf4 {[%clk 0:00:06]} 37. exf4 {[%clk 0:01:11]}  Rc8 {[%clk 0:00:06]} 38. Rb5 {[%clk 0:01:09]}  Rc4 {[%clk 0:00:05]} 39. Rxa5 {[%clk 0:01:08]}  Rxf4 {[%clk 0:00:05]} 40. Rh5 {[%clk 0:01:08]}  Kg6 {[%clk 0:00:05]} 41. Ra5 {[%clk 0:01:05]}  Rxh4 {[%clk 0:00:06]} 42. a4 {[%clk 0:01:06]}  Rb4 {[%clk 0:00:06]} 43. Ra8 {[%clk 0:01:05]}  h5 {[%clk 0:00:06]} 44. a5 {[%clk 0:01:06]}  Ra4 {[%clk 0:00:06]} 45. a6 {[%clk 0:01:06]}  Kf5 {[%clk 0:00:07]} 46. a7 {[%clk 0:01:05]}  h4 {[%clk 0:00:07]} 47. Rh8 {[%clk 0:00:58]}  Rxa7 {[%clk 0:00:06]} 48. Rxh4 {[%clk 0:00:57]}  e5 {[%clk 0:00:06]} 49. Kg2 {[%clk 0:00:53]}  Ra3 {[%clk 0:00:07]} 50. f3 {[%clk 0:00:49]}  Kg5 {[%clk 0:00:06]} 51. Rb4 {[%clk 0:00:46]}  f5 {[%clk 0:00:07]} 52. Kf2 {[%clk 0:00:46]}  Ra2+ {[%clk 0:00:06]} 53. Ke3 {[%clk 0:00:45]}  Ra3+ {[%clk 0:00:06]} 54. Kf2 {[%clk 0:00:45]}  f4 {[%clk 0:00:07]} 55. Re4 {[%clk 0:00:43]}  Kf5 {[%clk 0:00:07]} 56. Rb4 {[%clk 0:00:44]}  Re3 {[%clk 0:00:07]} 57. Rc4 {[%clk 0:00:42]}  Ra3 {[%clk 0:00:07]} 58. Rb4 {[%clk 0:00:42]}  Ra2+ {[%clk 0:00:07]} 59. Kf1 {[%clk 0:00:42]}  Rd2 {[%clk 0:00:07]} 60. Rb3 {[%clk 0:00:38]}  Ke6 {[%clk 0:00:06]} 61. Rb5 {[%clk 0:00:36]}  Rd5 {[%clk 0:00:05]} 62. Rb6+ {[%clk 0:00:35]}  Rd6 {[%clk 0:00:06]} 63. Rb5 {[%clk 0:00:35]}  Rd2 {[%clk 0:00:06]} 64. Ke1 {[%clk 0:00:34]}  Rc2 {[%clk 0:00:06]} 65. Kf1 {[%clk 0:00:33]}  Kd6 {[%clk 0:00:07]} 66. Ra5 {[%clk 0:00:33]}  Rc5 {[%clk 0:00:07]} 67. Ra6+ {[%clk 0:00:33]}  Kd5 {[%clk 0:00:07]} 68. Ra4 {[%clk 0:00:33]}  Rc4 {[%clk 0:00:07]} 69. Ra3 {[%clk 0:00:31]}  Kd4 {[%clk 0:00:07]} 70. Ke2 {[%clk 0:00:32]}  Rc2+ {[%clk 0:00:07]} 71. Ke1 {[%clk 0:00:31]}  Rc3 {[%clk 0:00:08]} 72. Ra4+ {[%clk 0:00:30]}  Ke3 {[%clk 0:00:06]} 73. Re4+ {[%clk 0:00:29]}  Kxf3 {[%clk 0:00:06]} 74. Rxe5 {[%clk 0:00:30]}  Rc1+ {[%clk 0:00:06]} 75. Kd2 {[%clk 0:00:30]}  Rf1 {[%clk 0:00:07]} 76. Re8 {[%clk 0:00:28]}  Kf2 {[%clk 0:00:06]} 77. Rf8 {[%clk 0:00:26]}  f3 {[%clk 0:00:06]} 78. Rf7 {[%clk 0:00:26]}  Ra1 {[%clk 0:00:05]} 79. Rf8 {[%clk 0:00:24]}  Kg2 {[%clk 0:00:05]} 80. Rg8+ {[%clk 0:00:24]}  Kf1 {[%clk 0:00:05]} 81. Rf8 {[%clk 0:00:24]}  f2 {[%clk 0:00:05]} 82. Ke3 {[%clk 0:00:23]}  Ra3+ {[%clk 0:00:05]} 83. Kd2 {[%clk 0:00:23]}  Kg2 {[%clk 0:00:05]} 84. Ke2 {[%clk 0:00:23]}  Ra2+ {[%clk 0:00:05]} 85. Ke3 {[%clk 0:00:22]}  f1=Q {[%clk 0:00:05]} 86. Rxf1 {[%clk 0:00:15]}  Kxf1 {[%clk 0:00:06]} 87. Kd3 {[%clk 0:00:16]}  Re2 {[%clk 0:00:07]} 88. Kc3 {[%clk 0:00:17]}  Kf2 {[%clk 0:00:07]} 89. Kb3 {[%clk 0:00:18]}  Ke3 {[%clk 0:00:08]} 90. Kc4 {[%clk 0:00:18]}  Rd2 {[%clk 0:00:09]} 91. Kc5 {[%clk 0:00:19]}  Rd4 {[%clk 0:00:09]} 92. Kb5 {[%clk 0:00:19]}  Ke4 {[%clk 0:00:10]} 93. Kc5 {[%clk 0:00:20]}  Rd5+ {[%clk 0:00:10]} 94. Kc6 {[%clk 0:00:20]}  Ke5 {[%clk 0:00:10]} 95. Kb6 {[%clk 0:00:21]}  Kd6 {[%clk 0:00:10]} 96. Ka6 {[%clk 0:00:21]}  Rc5 {[%clk 0:00:10]} 97. Kb6 {[%clk 0:00:22]}  Kd5 {[%clk 0:00:11]} 98. Ka6 {[%clk 0:00:23]}  Kc6 {[%clk 0:00:10]} 99. Ka7 {[%clk 0:00:22]}  Rb5 {[%clk 0:00:11]} 100. Ka6 {[%clk 0:00:22]}  Rc5 {[%clk 0:00:09]} 101. Ka7 {[%clk 0:00:22]}  Kc7 {[%clk 0:00:09]} 102. Ka6 {[%clk 0:00:22]}  Rd5 {[%clk 0:00:10]} 103. Ka7 {[%clk 0:00:21]}  Ra5# {[%clk 0:00:11]} 0-1


[Site "https://www.chess.com"]

[Event "Titled Tuesday Blitz May 31 Early 2022"]
[White "Bharath Subramaniyam H"]
[Black "Terry, Renato"]
[WhiteFideId "46634827"]
[BlackFideId "3803457"]
[WhiteElo "2242"]
[BlackElo "2577"]
[Result "1-0"]
[Round "04"]
[TimeControl "180+1"]
[Date "2022.05.31"]
[WhiteClock "0:00:20"]
[BlackClock "0:00:02"]

1. c4 {[%clk 0:02:59]}  b6 {[%clk 0:02:59]} 2. Nc3 {[%clk 0:02:57]}  Bb7 {[%clk 0:02:59]} 3. e4 {[%clk 0:02:56]}  c5 {[%clk 0:02:59]} 4. Nf3 {[%clk 0:02:55]}  g6 {[%clk 0:02:51]} 5. b3 {[%clk 0:02:53]}  Bg7 {[%clk 0:02:51]} 6. Bb2 {[%clk 0:02:54]}  Nc6 {[%clk 0:02:50]} 7. d3 {[%clk 0:02:54]}  e6 {[%clk 0:02:47]} 8. g3 {[%clk 0:02:54]}  Nge7 {[%clk 0:02:47]} 9. Bg2 {[%clk 0:02:53]}  d5 {[%clk 0:02:41]} 10. exd5 {[%clk 0:02:50]}  exd5 {[%clk 0:02:41]} 11. cxd5 {[%clk 0:02:38]}  Nxd5 {[%clk 0:02:41]} 12. Nxd5 {[%clk 0:02:23]}  Bxb2 {[%clk 0:02:35]} 13. Qe2+ {[%clk 0:02:23]}  Kd7 {[%clk 0:01:56]} 14. Qxb2 {[%clk 0:02:21]}  Re8+ {[%clk 0:01:56]} 15. Kf1 {[%clk 0:01:58]}  Re6 {[%clk 0:01:51]} 16. Ng5 {[%clk 0:01:53]}  Qxg5 {[%clk 0:01:51]} 17. Qg7 {[%clk 0:01:46]}  Nd8 {[%clk 0:01:40]} 18. Nf4 {[%clk 0:01:32]}  Bxg2+ {[%clk 0:01:33]} 19. Kxg2 {[%clk 0:01:33]}  Re7 {[%clk 0:01:07]} 20. Rhe1 {[%clk 0:01:27]}  Ne6 {[%clk 0:01:06]} 21. Nxe6 {[%clk 0:01:20]}  fxe6 {[%clk 0:01:03]} 22. Qc3 {[%clk 0:01:21]}  Qd5+ {[%clk 0:00:58]} 23. Kg1 {[%clk 0:01:20]}  Rf8 {[%clk 0:00:58]} 24. Re5 {[%clk 0:00:55]}  Qf3 {[%clk 0:00:53]} 25. Qd2 {[%clk 0:00:55]}  Ref7 {[%clk 0:00:48]} 26. Rf1 {[%clk 0:00:55]}  Rf5 {[%clk 0:00:43]} 27. d4 {[%clk 0:00:53]}  Rxe5 {[%clk 0:00:33]} 28. dxe5+ {[%clk 0:00:54]}  Qd5 {[%clk 0:00:33]} 29. Qe2 {[%clk 0:00:55]}  Ke7 {[%clk 0:00:26]} 30. Rd1 {[%clk 0:00:54]}  Qf3 {[%clk 0:00:26]} 31. Qd2 {[%clk 0:00:53]}  Kf7 {[%clk 0:00:18]} 32. Qd7+ {[%clk 0:00:49]}  Kg8 {[%clk 0:00:19]} 33. Qxe6+ {[%clk 0:00:50]}  Kh8 {[%clk 0:00:20]} 34. Rd2 {[%clk 0:00:44]}  Qe4 {[%clk 0:00:14]} 35. Rd1 {[%clk 0:00:22]}  Qe2 {[%clk 0:00:08]} 36. Rf1 {[%clk 0:00:22]}  Rf5 {[%clk 0:00:05]} 37. Qe8+ {[%clk 0:00:22]}  Kg7 {[%clk 0:00:05]} 38. e6 {[%clk 0:00:22]}  Rd5 {[%clk 0:00:04]} 39. e7 {[%clk 0:00:20]}  Rf5 {[%clk 0:00:02]} 40. Qd8 {[%clk 0:00:20]}  Re5 {[%clk 0:00:02]} 41. Qf8# {[%clk 0:00:20]} 1-0


[Site "https://www.chess.com"]